bitfinex/quotes_SOLUSD_20220129
["timestamp","ask_amount","ask_price","bid_price","bid_amount"]
[1643435747230,23.7963,94.955,94.877,1.47443244]
[1643435747429,23.7963,94.955,94.879,1.47443244]
[1643435747831,23.7963,94.955,94.88,0.25]
[1643435748032,23.7963,94.955,94.881,1.47443244]
[1643435748230,23.7963,94.955,94.88,0.25]
[1643435748231,23.7963,94.955,94.883,1.47443244]
[1643435748633,23.7963,94.955,94.884,0.25]
[1643435749232,0.25,94.954,94.875,1.47443244]
[1643435749532,0.25,94.954,94.874,1.47443244]
[1643435749932,0.25,94.954,94.872,1.47443244]
[1643435750332,23.7963,94.955,94.872,1.47443244]
[1643435750531,23.7963,94.955,94.876,1.47443244]
[1643435751031,6.0,94.945,94.877,0.25]
[1643435751432,6.0,94.944,94.877,0.25]
[1643435752031,24.1959,94.943,94.874,0.25]
[1643435752931,24.1959,94.943,94.875,1.47443244]
[1643435753131,24.1959,94.943,94.876,1.47443244]
[1643435753331,24.1959,94.943,94.877,0.25]
[1643435754032,24.1959,94.943,94.876,1.47443244]
[1643435754033,6.0,94.933,94.876,1.47443244]
[1643435754232,6.0,94.933,94.871,1.47443244]
[1643435754233,22.6965,94.932,94.871,1.47443244]
[1643435754437,35.95064577,94.931,94.865,1.47443244]
[1643435754833,35.95064577,94.931,94.866,1.47443244]
[1643435755833,35.95064577,94.931,94.867,0.25]
[1643435756033,2.95669142,94.93,94.867,0.25]
[1643435756235,2.95669142,94.93,94.864,1.47443244]
[1643435756435,2.95669142,94.93,94.866,0.25]
[1643435756637,35.95064577,94.931,94.866,0.25]
[1643435756839,35.95064577,94.931,94.874,1.47443244]
[1643435757235,35.95064577,94.931,94.875,1.72443244]
[1643435757436,35.95064577,94.931,94.875,1.47443244]
[1643435757639,35.95064577,94.931,94.876,0.25]
[1643435758837,35.95064577,94.931,94.871,0.25]
[1643435759239,35.95064577,94.931,94.869,1.47443244]
[1643435759439,35.95064577,94.931,94.87,0.25]
[1643435759841,23.5411,94.93,94.87,0.25]
[1643435760442,35.95064577,94.931,94.868,0.25]
[1643435761462,35.95064577,94.931,94.866,1.47443244]
[1643435761664,35.95064577,94.931,94.867,0.25]
[1643435762866,35.95064577,94.931,94.868,1.47443244]
[1643435763263,35.95064577,94.931,94.869,0.25]
[1643435764064,24.2335,94.93,94.869,0.25]
[1643435764264,24.2335,94.93,94.868,0.25]
[1643435766067,15.38,94.97,94.877,1.47443244]
[1643435766266,79.62987234,94.977,94.895,1.47443244]
[1643435766267,24.4767,94.976,94.895,1.47443244]
[1643435766466,24.4767,94.976,94.878,0.25]
[1643435766467,1.47337234,95.002,94.902,1.47443244]
[1643435766667,24.4767,94.999,94.911,1.47443244]
[1643435766966,34.84193184,94.998,94.913,1.47443244]
[1643435767366,34.84193184,94.998,94.914,1.72443244]
[1643435767766,0.25,94.997,94.915,1.47443244]
[1643435767967,0.25,94.997,94.914,0.25]
[1643435768368,0.25,94.997,94.911,0.25]
[1643435768766,0.25,94.997,94.91,0.25]
[1643435769167,34.84193184,94.998,94.91,0.25]
[1643435769366,34.84193184,94.998,94.911,2.7675681]
[1643435769566,34.84193184,94.998,94.921,1.47443244]
[1643435769767,34.75200013,94.998,94.922,0.25]
[1643435769967,34.75200013,94.998,94.922,1.72443244]
[1643435770167,34.75200013,94.998,94.911,4.24200054]
[1643435770369,34.75200013,94.998,94.912,0.25]
[1643435770968,23.6401,94.997,94.912,0.25]
[1643435771469,23.6401,94.997,94.909,1.47443244]
[1643435771470,23.6401,94.997,94.914,1.47443244]
[1643435771669,23.6401,94.997,94.91,0.25]
[1643435772870,23.6401,94.997,94.909,0.25]
[1643435773274,23.6401,94.997,94.908,1.47443244]
[1643435773470,23.6401,94.997,94.909,2.7675681]
[1643435773671,23.6401,94.997,94.909,3.0175681]
[1643435774072,23.6401,94.997,94.909,4.49200054]
[1643435774573,23.6401,94.997,94.909,3.0175681]
[1643435775276,23.6401,94.997,94.909,2.7675681]
[1643435775575,23.6401,94.997,94.852,4.34029674]
[1643435775576,70.0,94.986,94.855,2.94400701]
[1643435775976,6.0,94.976,94.849,4.39228234]
[1643435776175,15.38,94.97,94.849,4.39228234]
[1643435776376,31.192,94.97,94.849,4.39228234]
[1643435776677,46.46344505,94.959,94.839,11.00592059]
[1643435776875,15.38,94.95,94.839,11.00592059]
[1643435777677,15.38,94.95,94.839,13.9499276]
[1643435777981,15.38,94.95,94.84,2.94400701]
[1643435778381,15.38,94.95,94.839,11.00592059]
[1643435778382,15.38,94.95,94.839,13.9499276]
[1643435778579,38.48819764,94.939,94.839,13.9499276]
[1643435778779,38.48819764,94.939,94.839,11.00592059]
[1643435779381,83.93839764,94.939,94.84,2.94400701]
[1643435779680,83.93839764,94.939,94.839,13.9499276]
[1643435779880,83.93839764,94.939,94.849,0.25]
[1643435783686,83.93839764,94.939,94.84,31.191]
[1643435783887,83.93839764,94.939,94.849,106.4]
[1643435784088,38.48819764,94.939,94.859,6.0]
[1643435784289,38.48819764,94.939,94.858,6.0]
[1643435785088,38.48819764,94.939,94.851,23.0435]
[1643435785288,38.48819764,94.939,94.852,106.65]
[1643435785489,38.48819764,94.939,94.852,4.60573922]
[1643435785692,38.48819764,94.939,94.853,4.35573922]
[1643435786095,38.48819764,94.939,94.852,4.35573922]
[1643435786693,38.48819764,94.939,94.852,110.75573922]
[1643435786892,38.48819764,94.939,94.853,4.60573922]
[1643435787093,38.48819764,94.939,94.854,4.35573922]
[1643435787593,38.48819764,94.939,94.851,23.0435]
[1643435787993,24.9472,94.938,94.851,23.0435]
[1643435789394,24.9472,94.938,94.852,0.25]
[1643435793802,24.9472,94.938,94.848,113.7]
[1643435794002,2.95669142,94.937,94.848,113.7]
[1643435794203,2.95669142,94.937,94.833,2.94400701]
[1643435794419,2.95669142,94.937,94.835,4.35928243]
[1643435794619,24.9472,94.938,94.835,7.12685053]
[1643435794820,24.9472,94.938,94.836,2.7675681]
[1643435795022,24.9472,94.938,94.837,4.35928243]
[1643435795422,25.9472,94.938,94.838,2.7675681]
[1643435795621,1.0,94.938,94.839,4.35928243]
[1643435795821,1.0,94.938,94.856,113.7]
[1643435796221,1.0,94.938,94.857,4.60928243]
[1643435796424,38.48819764,94.939,94.857,0.25]
[1643435796622,24.2371,94.938,94.857,0.25]
[1643435798823,24.2371,94.938,94.838,2.94400701]
[1643435799027,24.639,94.937,94.835,4.35889638]
[1643435799326,24.639,94.937,94.837,2.94400701]
[1643435799527,24.639,94.937,94.836,4.35889638]
[1643435799925,24.639,94.937,94.837,0.25]
[1643435800126,24.639,94.937,94.838,4.35889638]
[1643435800329,24.639,94.937,94.839,0.25]
[1643435800626,24.639,94.937,94.84,4.35889638]
[1643435800825,24.639,94.937,94.841,0.25]
[1643435801027,24.639,94.937,94.839,0.25]
[1643435801427,26.089,94.937,94.839,0.25]
[1643435801728,26.089,94.937,94.84,4.36311522]
[1643435802427,0.25,94.936,94.84,4.36311522]
[1643435802628,6.0,94.927,94.835,4.36311522]
[1643435802827,45.4789209,94.919,94.836,0.25]
[1643435803030,45.4789209,94.919,94.837,4.3672882]
[1643435803428,45.4789209,94.919,94.833,2.94400701]
[1643435803628,45.4789209,94.919,94.832,2.94400701]
[1643435803829,45.4789209,94.919,94.831,2.94400701]
[1643435804230,45.4789209,94.919,94.83,2.94400701]
[1643435804428,45.4789209,94.919,94.832,4.3672882]
[1643435804628,45.4789209,94.919,94.84,2.94400701]
[1643435804829,45.4789209,94.919,94.839,2.94400701]
[1643435805029,45.4789209,94.919,94.838,2.94400701]
[1643435805229,45.4789209,94.919,94.84,2.94400701]
[1643435805430,0.25,94.918,94.838,2.94400701]
[1643435805629,6.0,94.909,94.833,2.94400701]
[1643435805831,23.5263,94.908,94.834,3.19400701]
[1643435806029,6.0,94.898,94.834,3.19400701]
[1643435806236,41.35630163,94.897,94.835,4.3672882]
[1643435806633,41.35630163,94.897,94.836,0.25]
[1643435806837,41.35630163,94.897,94.837,4.3672882]
[1643435807235,41.35630163,94.897,94.838,0.25]
[1643435807535,41.35630163,94.897,94.839,4.3672882]
[1643435807935,41.35630163,94.897,94.84,0.25]
[1643435808136,41.35630163,94.897,94.836,4.3672882]
[1643435808336,41.35630163,94.897,94.841,4.3672882]
[1643435808535,41.35630163,94.897,94.837,4.3672882]
[1643435808735,41.35630163,94.897,94.838,4.3672882]
[1643435809136,41.35630163,94.897,94.839,4.3672882]
[1643435809337,41.35630163,94.897,94.829,2.94400701]
[1643435809536,41.35630163,94.897,94.828,2.94400701]
[1643435809936,41.35630163,94.897,94.829,7.16252625]
[1643435810337,41.35630163,94.897,94.829,2.94400701]
[1643435810537,41.35630163,94.897,94.83,4.21851924]
[1643435810739,41.35630163,94.897,94.829,2.94400701]
[1643435810937,41.35630163,94.897,94.832,2.94400701]
[1643435811138,41.35630163,94.897,94.832,7.16252625]
[1643435811339,41.35630163,94.897,94.833,0.25]
[1643435811738,41.35630163,94.897,94.834,4.21851924]
[1643435812138,23.5263,94.908,94.835,2.76803549]
[1643435812337,23.5263,94.908,94.835,3.01803549]
[1643435812537,23.5263,94.908,94.846,2.94400701]
[1643435812839,15.38,94.94,94.847,0.25]
[1643435813038,15.38,94.93,94.847,25.0359]
[1643435813238,15.38,94.93,94.848,4.21851924]
[1643435813437,15.38,94.93,94.852,2.94400701]
[1643435813838,15.38,94.93,94.853,0.25]
[1643435814039,15.38,94.93,94.854,7.16252625]
[1643435814440,15.38,94.93,94.855,0.25]
[1643435814639,15.38,94.93,94.856,4.21851924]
[1643435814839,15.38,94.93,94.857,0.25]
[1643435815039,15.38,94.93,94.858,4.21851924]
[1643435815440,15.38,94.93,94.859,0.25]
[1643435815639,15.38,94.93,94.86,4.21851924]
[1643435815841,15.38,94.93,94.861,0.25]
[1643435816243,15.38,94.93,94.862,4.21851924]
[1643435816641,15.38,94.93,94.863,0.25]
[1643435816840,15.38,94.93,94.864,4.21851924]
[1643435817044,15.38,94.93,94.855,2.94400701]
[1643435817344,15.38,94.93,94.858,0.25]
[1643435817743,15.38,94.93,94.859,4.21851924]
[1643435818143,15.38,94.93,94.86,0.25]
[1643435818342,15.38,94.93,94.861,4.21851924]
[1643435818842,15.38,94.93,94.862,0.25]
[1643435819242,0.25,94.929,94.862,0.25]
[1643435819843,0.25,94.929,94.853,0.25]
[1643435820243,15.38,94.93,94.854,4.2173485]
[1643435820643,15.38,94.93,94.857,2.94400701]
[1643435820846,15.38,94.93,94.858,0.25]
[1643435821044,15.38,94.93,94.859,4.2173485]
[1643435821243,15.38,94.93,94.858,4.4673485]
[1643435821444,15.38,94.93,94.86,0.25]
[1643435821644,15.38,94.93,94.861,4.2173485]
[1643435821844,15.38,94.93,94.862,0.25]
[1643435822044,55.76577349,94.936,94.859,7.16135551]
[1643435822246,55.76577349,94.936,94.863,4.2173485]
[1643435822547,55.76577349,94.936,94.864,4.2173485]
[1643435822744,55.76577349,94.936,94.857,2.94400701]
[1643435822945,6.0,94.926,94.858,2.94400701]
[1643435823347,6.0,94.926,94.857,2.94400701]
[1643435823545,6.0,94.926,94.859,4.2173485]
[1643435823745,6.0,94.926,94.857,2.94400701]
[1643435823946,6.0,94.926,94.86,0.25]
[1643435824147,6.0,94.926,94.859,2.94400701]
[1643435824346,6.0,94.926,94.861,4.2173485]
[1643435824750,6.0,94.926,94.862,0.25]
[1643435824946,6.0,94.926,94.863,4.2173485]
[1643435825447,6.0,94.926,94.853,2.94400701]
[1643435826048,6.0,94.926,94.852,2.94400701]
[1643435826350,24.4561,94.925,94.852,2.94400701]
[1643435826550,6.0,94.915,94.848,4.2173485]
[1643435826750,61.35832819,94.914,94.836,2.94400701]
[1643435826950,61.35832819,94.914,94.835,2.94400701]
[1643435827750,61.35832819,94.914,94.833,2.94400701]
[1643435827952,61.35832819,94.914,94.832,2.94400701]
[1643435828155,61.35832819,94.914,94.834,2.94400701]
[1643435828553,6.0,94.904,94.834,2.94400701]
[1643435828754,24.7686,94.903,94.834,2.94400701]
[1643435828955,24.7686,94.903,94.833,2.94400701]
[1643435829153,35.37784512,94.892,94.833,2.94400701]
[1643435829358,35.37784512,94.892,94.832,2.94400701]
[1643435829553,35.37784512,94.892,94.827,2.94400701]
[1643435829755,22.5784,94.891,94.827,2.94400701]
[1643435829958,22.5784,94.891,94.828,4.2173485]
[1643435830156,22.5784,94.891,94.827,4.2173485]
[1643435830555,22.5784,94.891,94.828,4.2173485]
[1643435830856,22.5784,94.891,94.819,2.94400701]
[1643435831054,6.0,94.881,94.817,2.94400701]
[1643435831255,6.0,94.881,94.815,2.94400701]
[1643435831456,6.0,94.881,94.814,2.94400701]
[1643435831656,23.8142,94.88,94.814,2.94400701]
[1643435832058,6.0,94.87,94.818,2.94400701]
[1643435832255,40.54865277,94.869,94.818,2.94400701]
[1643435832558,40.54865277,94.869,94.819,4.2173485]
[1643435832756,40.54865277,94.869,94.813,4.2173485]
[1643435833356,40.54865277,94.869,94.817,2.94400701]
[1643435833558,40.54865277,94.869,94.821,2.94400701]
[1643435834157,40.54865277,94.869,94.819,4.2173485]
[1643435834356,40.54865277,94.869,94.819,0.25]
[1643435834557,40.54865277,94.869,94.82,4.2173485]
[1643435834956,40.54865277,94.869,94.817,2.94400701]
[1643435835158,40.54865277,94.869,94.82,2.94400701]
[1643435835357,40.54865277,94.869,94.818,18.43533228]
[1643435835577,40.54865277,94.869,94.819,4.2173485]
[1643435835777,40.54865277,94.869,94.819,19.95867377]
[1643435836078,40.54865277,94.869,94.82,19.70867377]
[1643435836277,40.54865277,94.869,94.821,4.2173485]
[1643435836677,40.54865277,94.869,94.813,4.2173485]
[1643435838180,23.8142,94.88,94.814,0.25]
[1643435838380,73.1387,94.974,94.821,2.94400701]
[1643435838580,73.1387,94.974,94.815,4.2173485]
[1643435838581,45.3537,94.94,94.842,2.94400701]
[1643435838781,60.7337,94.94,94.847,2.94400701]
[1643435839180,43.55319906,94.939,94.857,6.0]
[1643435839384,43.55319906,94.939,94.858,0.25]
[1643435839581,46.50989048,94.939,94.848,18.39771632]
[1643435839780,46.50989048,94.939,94.849,0.25]
[1643435840183,6.0,94.929,94.849,0.25]
[1643435840583,6.0,94.92,94.836,2.94400701]
[1643435840784,40.86585678,94.919,94.839,0.25]
[1643435840984,6.0,94.918,94.84,4.20823202]
[1643435841184,6.0,94.909,94.84,4.20823202]
[1643435841382,24.9747,94.908,94.841,15.70051888]
[1643435841783,0.25,94.907,94.842,4.20823202]
[1643435841982,24.9747,94.908,94.843,0.25]
[1643435842185,24.9747,94.908,94.844,4.20823202]
[1643435842384,24.9747,94.908,94.845,0.25]
[1643435842584,24.9747,94.908,94.846,4.20823202]
[1643435842886,24.9747,94.908,94.847,0.25]
[1643435843485,24.9747,94.908,94.847,6.25]
[1643435843687,24.9747,94.908,94.847,0.25]
[1643435844087,24.9747,94.908,94.848,6.0]
[1643435844286,24.9747,94.908,94.849,0.25]
[1643435845587,0.25,94.907,94.84,3.19400701]
[1643435845788,0.25,94.907,94.841,4.21111598]
[1643435845988,0.25,94.907,94.841,19.66912975]
[1643435846188,0.25,94.907,94.842,4.46111598]
[1643435846387,0.25,94.907,94.843,4.21111598]
[1643435846788,24.9747,94.908,94.844,15.70801377]
[1643435846988,22.7805,94.94,94.845,110.61111598]
[1643435847189,22.7805,94.94,94.854,6.0]
[1643435847388,22.7805,94.94,94.862,2.94400701]
[1643435847589,22.7805,94.94,94.872,6.0]
[1643435847790,2.1244289,94.941,94.873,4.46111598]
[1643435847992,39.16110558,94.94,94.874,6.0]
[1643435848191,39.16110558,94.94,94.883,6.0]
[1643435848394,39.16110558,94.94,94.884,0.25]
[1643435849491,39.16110558,94.94,94.874,6.0]
[1643435849893,39.16110558,94.94,94.875,0.25]
[1643435850894,39.16110558,94.94,94.872,0.25]
[1643435851692,39.16110558,94.94,94.86,2.94400701]
[1643435851693,39.16110558,94.94,94.87,6.0]
[1643435851892,39.16110558,94.94,94.871,0.25]
[1643435852294,23.2774,94.939,94.871,0.25]
[1643435853196,23.2774,94.939,94.858,0.25]
[1643435853394,0.25,94.938,94.859,4.20376987]
[1643435853593,23.2774,94.939,94.86,0.25]
[1643435853793,23.2774,94.939,94.861,4.20376987]
[1643435854193,23.2774,94.939,94.862,0.25]
[1643435854396,23.2774,94.939,94.862,3.00668927]
[1643435854594,23.2774,94.939,94.863,2.75668927]
[1643435854794,23.2774,94.939,94.864,0.25]
[1643435854997,23.2774,94.939,94.864,19.86160167]
[1643435855195,23.2774,94.939,94.865,2.75668927]
[1643435855395,23.2774,94.939,94.866,4.45376987]
[1643435855602,39.16110558,94.94,94.866,4.45376987]
[1643435855798,39.16110558,94.94,94.876,6.0]
[1643435856295,39.16110558,94.94,94.877,0.25]
[1643435856695,39.16110558,94.94,94.878,6.0]
[1643435856903,39.16110558,94.94,94.879,0.25]
[1643435857196,39.16110558,94.94,94.877,0.25]
[1643435857797,39.16110558,94.94,94.868,24.8694]
[1643435857798,39.16110558,94.94,94.878,6.0]
[1643435858199,39.16110558,94.94,94.879,0.25]
[1643435858401,39.16110558,94.94,94.869,0.25]
[1643435858600,39.16110558,94.94,94.87,4.19851094]
[1643435858803,3.3474864,94.978,94.894,0.31317726]
[1643435859004,3.3474864,94.978,94.917,0.3066871]
[1643435859206,3.3474864,94.978,94.917,8.9666871]
[1643435859403,40.342,95.03,94.917,8.9666871]
[1643435859404,1083.24912993,95.0,94.942,0.31975838]
[1643435859605,1083.24912993,95.0,94.942,13.40975838]
[1643435859807,40.99283502,94.999,94.943,109.43300707]
[1643435860006,40.99283502,94.999,94.953,6.0]
[1643435860309,40.99283502,94.999,94.954,0.25]
[1643435860506,40.99283502,94.999,94.954,9.03300707]
[1643435860708,40.99283502,94.999,94.954,3.03300707]
[1643435861009,40.99283502,94.999,94.964,6.0]
[1643435861209,40.99283502,94.999,94.938,2.78300707]
[1643435861409,70.0,94.998,94.92,15.38]
[1643435861608,40.99283502,94.999,94.92,15.38]
[1643435861807,40.99283502,94.999,94.87,207.7777]
[1643435861808,72.95669142,94.997,94.87,207.7777]
[1643435862009,6.0,94.987,94.88,15.38]
[1643435862209,24.4475,94.986,94.86,15.38]
[1643435862408,6.0,94.979,94.88,10.0]
[1643435862607,0.25,94.985,94.88,10.0]
[1643435862608,33.72463348,94.975,94.88,10.0]
[1643435863008,41.47395898,94.959,94.88,10.0]
[1643435863313,41.47395898,94.959,94.883,106.4]
[1643435863510,15.38,95.04,94.891,63.87]
[1643435863708,23.4211,95.035,94.9,15.38]
[1643435863908,23.4211,95.035,94.901,110.74848135]
[1643435864108,23.4211,95.035,94.911,6.0]
[1643435864308,23.4211,95.035,94.912,106.65]
[1643435864510,34.225282,94.999,94.931,0.31520506]
[1643435864710,34.225282,94.999,94.931,13.47520506]
[1643435864911,34.225282,94.999,94.932,0.25]
[1643435865111,34.225282,94.999,94.941,6.0]
[1643435865311,34.225282,94.999,94.942,0.25]
[1643435865511,34.225282,94.999,94.943,6.0]
[1643435865913,34.225282,94.999,94.944,0.25]
[1643435866119,34.225282,94.999,94.944,3.03384383]
[1643435866515,34.225282,94.999,94.954,6.0]
[1643435866716,34.225282,94.999,94.944,0.25]
[1643435867115,34.225282,94.999,94.93,6.0]
[1643435867317,34.225282,94.999,94.931,0.25]
[1643435867616,34.225282,94.999,94.931,3.03384383]
[1643435867816,34.225282,94.999,94.932,2.78384383]
[1643435868017,34.225282,94.999,94.941,6.0]
[1643435868218,34.225282,94.999,94.942,6.0]
[1643435868419,34.225282,94.999,94.943,0.25]
[1643435868819,34.225282,94.999,94.944,2.78384383]
[1643435869344,34.225282,94.999,94.945,0.25]
[1643435869719,34.225282,94.999,94.946,2.78384383]
[1643435869920,34.225282,94.999,94.947,0.25]
[1643435870320,34.225282,94.999,94.948,2.78384383]
[1643435870721,34.225282,94.999,94.949,0.25]
[1643435871223,34.225282,94.999,94.95,2.78384383]
[1643435871423,34.225282,94.999,94.951,0.25]
[1643435871825,34.225282,94.999,94.952,2.78384383]
[1643435872224,34.225282,94.999,94.953,0.25]
[1643435872625,34.225282,94.999,94.962,6.0]
[1643435872824,34.225282,94.999,94.963,0.25]
[1643435873027,34.225282,94.999,94.965,106.4]
[1643435873425,34.225282,94.999,94.975,6.0]
[1643435873827,34.225282,94.999,94.976,103.68384383]
[1643435874025,34.225282,94.999,94.976,100.65]
[1643435875026,34.225282,94.999,94.977,2.78384383]
[1643435875228,34.225282,94.999,94.977,3.03384383]
[1643435875828,34.225282,94.999,94.978,2.78384383]
[1643435876230,34.225282,94.999,94.979,0.25]
[1643435876632,34.225282,94.999,94.98,2.78384383]
[1643435876856,23.6984,95.066,94.981,0.25]
[1643435877034,23.6984,95.066,94.99,6.0]
[1643435877231,23.6984,95.066,94.991,106.4]
[1643435877533,23.6984,95.066,94.991,109.43384383]
[1643435877931,45.64617139,94.999,94.991,109.43384383]
[1643435878130,15.789,95.08,94.992,2.78384383]
[1643435878332,15.789,95.08,94.993,0.25]
[1643435878532,15.789,95.08,94.993,106.65]
[1643435878731,15.789,95.08,94.994,2.78384383]
[1643435879130,15.789,95.08,94.995,0.25]
[1643435879531,1062.72093438,95.0,94.992,10.00231242]
[1643435879734,1062.72093438,95.0,94.99,6.0]
[1643435879932,1062.72093438,95.0,94.989,71.4313077]
[1643435880133,1062.72093438,95.0,94.99,3.14403399]
[1643435880732,1062.72093438,95.0,94.967,2.78384383]
[1643435880733,1062.72093438,95.0,94.971,63.87]
[1643435880934,1062.72093438,95.0,94.973,63.87]
[1643435881136,1062.72093438,95.0,94.972,106.4]
[1643435881137,1062.72093438,95.0,94.974,106.4]
[1643435881335,1062.72093438,95.0,94.983,106.4]
[1643435881538,1062.72093438,95.0,94.993,6.0]
[1643435881737,1062.72093438,95.0,94.994,106.4]
[1643435881935,1062.22093438,95.0,94.994,106.65]
[1643435882135,1062.22093438,95.0,94.994,106.4]
[1643435882336,1062.22093438,95.0,94.995,0.25]
[1643435883137,1062.22093438,95.0,94.995,3.02603292]
[1643435883437,1062.22093438,95.0,94.984,8.77603292]
[1643435884041,1062.22093438,95.0,94.979,106.4]
[1643435884042,1062.22093438,95.0,94.964,2.77603292]
[1643435884241,1062.22093438,95.0,94.953,19.88824271]
[1643435884463,1062.22093438,95.0,94.949,106.4]
[1643435885263,1062.22093438,95.0,94.95,0.25]
[1643435886062,1062.22093438,95.0,94.93,31.175]
[1643435886063,1062.22093438,95.0,94.931,106.65]
[1643435886463,1062.22093438,95.0,94.932,4.09839869]
[1643435886863,1062.22093438,95.0,94.931,106.4]
[1643435887066,459.3710505,95.0,94.934,63.87]
[1643435887264,336.6344505,95.0,94.981,0.31181074]
[1643435887464,336.6344505,95.0,94.999,0.32084953]
[1643435888064,98.4848505,95.0,94.999,66.96325517]
[1643435888266,84.5713505,95.0,94.999,3.34325517]
[1643435888469,0.5332677,95.1,94.999,3.34325517]
[1643435888665,0.5332677,95.1,95.012,0.30115543]
[1643435888865,0.1,95.124,95.108,24.18593608]
[1643435889067,0.1,95.124,95.108,37.94593608]
[1643435889271,192.23,95.24,95.108,37.94593608]
[1643435889272,24.6862,95.155,95.108,37.94593608]
[1643435889469,27.31724918,95.154,95.118,6.0]
[1643435889667,0.1,95.153,95.118,6.0]
[1643435889867,0.1,95.168,95.119,0.25]
[1643435890068,23.8528,95.169,95.12,6.0]
[1643435890270,23.8528,95.169,95.11,15.38]
[1643435890467,23.8528,95.169,95.108,37.94593608]
[1643435890468,4.39939951,95.276,95.157,0.31254421]
[1643435890669,26.75307459,95.256,95.17,15.38]
[1643435890867,26.14263853,95.256,95.171,0.25]
[1643435891067,26.14263853,95.256,95.18,6.0]
[1643435891268,26.14263853,95.256,95.194,0.32391266]
[1643435891477,25.64263853,95.256,95.191,106.4]
[1643435891667,25.64263853,95.256,95.2,6.0]
[1643435891868,24.64263853,95.256,95.21,15.38]
[1643435892468,24.64263853,95.256,95.211,0.25]
[1643435892670,23.4378,95.299,95.211,42.63124664]
[1643435892869,23.4378,95.299,95.212,42.30457998]
[1643435893069,23.4378,95.299,95.211,0.25]
[1643435893268,73.3261,95.319,95.211,0.25]
[1643435893469,0.33179119,95.291,95.22,6.0]
[1643435893769,0.33179119,95.291,95.224,40.56434741]
[1643435893969,0.33179119,95.291,95.23,0.31848345]
[1643435894170,0.33179119,95.291,95.24,15.38]
[1643435894372,0.33179119,95.291,95.25,15.741]
[1643435894570,0.33179119,95.291,95.26,15.38]
[1643435894770,0.33179119,95.291,95.261,0.25]
[1643435894970,0.33179119,95.291,95.223,2.77239323]
[1643435895170,0.33179119,95.291,95.23,15.38]
[1643435895571,0.33179119,95.291,95.24,6.0]
[1643435895771,0.33179119,95.291,95.25,15.38]
[1643435896171,0.33179119,95.291,95.213,2.77239323]
[1643435896373,0.33179119,95.291,95.222,21.46449271]
[1643435896571,0.33179119,95.291,95.222,106.4]
[1643435896771,0.33179119,95.291,95.22,12.6]
[1643435896974,0.33179119,95.291,95.22,51.24191808]
[1643435897773,0.33179119,95.291,95.221,0.25]
[1643435897971,0.33179119,95.291,95.221,3.02239323]
[1643435898172,0.33179119,95.291,95.222,2.77239323]
[1643435898372,0.33179119,95.291,95.223,0.25]
[1643435898772,0.33179119,95.291,95.223,3.02239323]
[1643435898972,0.33179119,95.291,95.23,15.745]
[1643435899172,0.33179119,95.291,95.23,12.6]
[1643435899372,4.60586934,95.308,95.231,0.25]
[1643435899576,4.60586934,95.308,95.24,6.0]
[1643435899772,4.60586934,95.308,95.241,0.25]
[1643435899972,4.60586934,95.308,95.232,2.77239323]
[1643435900173,4.60586934,95.308,95.242,2.77239323]
[1643435900375,0.25,95.307,95.242,2.77239323]
[1643435900575,0.25,95.307,95.23,12.6]
[1643435901176,6.0,95.298,95.195,2.77239323]
[1643435901376,6.0,95.29,95.2,12.6]
[1643435901580,6.0,95.289,95.158,2.77239323]
[1643435901775,6.0,95.289,95.086,15.7409]
[1643435901776,126.78349142,95.289,95.14,12.6]
[1643435901975,12.6,95.28,95.14,12.6]
[1643435902376,6.0,95.27,95.14,12.6]
[1643435902575,6.0,95.27,95.093,18.75034383]
[1643435902576,15.764,95.24,95.12,12.6]
[1643435902776,15.764,95.24,95.075,1.3998367]
[1643435902777,71.3194,95.239,95.1,12.6]
[1643435902977,6.0,95.23,95.1,12.6]